[Event "68th Warsaw-ch-B 2019"]
[Site "Warsaw"]
[Date "2019.11.15"]
[Round "4.5"]
[White "Kwiek, Janusz"]
[Black "Wiktorowski, Janusz"]
[Result "1-0"]
[ECO "A04"]
[WhiteElo "1496"]
[BlackElo "1426"]
[Annotator "NA"]
[PlyCount "87"]
[EventDate "2019.11.14"]
[EventType "swiss"]
[EventCountry "POL"]
[SourceTitle "playchess.com"]
[Source "ChessBase"]
[SourceQuality "1"]
[TimeControl "5400+30"]

1. Nf3 Nc6 2. d4 {[%emt 0:32:09]} d5 {[%emt 0:30:07]} 3. g3 {[%emt 0:00:25]} e6 {[%emt 0:01:15]} 4. Bg2 {[%emt 0:00:16]} h6 {[%emt 0:01:00]} 5. O-O {[%emt 0:00:22]} Nf6 {[%emt 0:00:06]} 6. Nbd2 {[%emt 0:02:34]} Bd6 {[%emt 0:01:49]} 7. c4 {[%emt 0:00:16]} b6 {[%emt 0:01:51]} 8. b3 {[%emt 0:01:34]} O-O {[%emt 0:01:23]} 9. Bb2 {[%emt 0:00:14]} Rb8 {[%emt 0:05:25]} 10. Rc1 {[%emt 0:02:21]} Bb7 {[%emt 0:01:52]} 11. Re1 {[%emt 0:02:11]} Be7 {[%emt 0:00:47]} 12. a3 {[%emt 0:02:24]} a5 {[%emt 0:05:17]} 13. Rc2 {[%emt 0:01:28]} dxc4 14. Nxc4 {[%emt 0:01:03]} b5 {[%emt 0:02:32]} 15. Nce5 Na7 {[%emt 0:03:43]} 16. Qc1 {[%emt 0:02:54]} Bd6 {[%emt 0:00:20]} 17. Rd1 {[%emt 0:01:45]} Qe7 {[%emt 0:00:26]} 18. Nd2 {[%emt 0:02:28]} Rfc8 {[%emt 0:08:20]} 19. Bxb7 {[%emt 0:00:17]} Rxb7 {[%emt 0:00:03]} 20. Nc6 {[%emt 0:02:16]} Nxc6 {[%emt 0:02:13]} 21. Rxc6 {[%emt 0:00:07]} b4 {[%emt 0:06:05]} 22. a4 {[%emt 0:00:36]} Qd8 {[%emt 0:02:22]} 23. e4 {[%emt 0:01:06]} Be7 {[%emt 0:00:50]} 24. f3 {[%emt 0:01:50]} Nd7 {[%emt 0:03:24]} 25. Rc2 {[%emt 0:05:26]} c5 {[%emt 0:01:23]} 26. d5 {[%emt 0:03:48]} exd5 {[%emt 0:03:13]} 27. exd5 {[%emt 0:00:13]} Nb6 {[%emt 0:03:52]} 28. Ne4 {[%emt 0:02:18]} Nxd5 {[%emt 0:01:22]} 29. Rcd2 {[%emt 0:01:38]} Rd7 {[%emt 0:00:27]} 30. Qc4 {[%emt 0:06:00]} Nb6 {[%emt 0:03:10]} 31. Rxd7 {[%emt 0:00:56]} Nxd7 {[%emt 0:00:03]} 32. Qb5 {[%emt 0:02:18]} Rc7 {[%emt 0:00:05]} 33. Be5 Ra7 {[%emt 0:04:48]} 34. Nxc5 {[%emt 0:03:09]} Bxc5+ {[%emt 0:00:28]} 35. Qxc5 {[%emt 0:01:49]} Nxc5 {[%emt 0:00:01]} 36. Rxd8+ {[%emt 0:00:14]} Kh7 {[%emt 0:00:03]} 37. Bd4 {[%emt 0:01:27]} Rc7 {[%emt 0:00:01]} 38. Bxc5 {[%emt 0:00:30]} Rxc5 {[%emt 0:00:02]} 39. Ra8 {[%emt 0:01:41]} g5 {[%emt 0:01:08]} 40. h4 {[%emt 0:02:37]} gxh4 {[%emt 0:00:37]} 41. gxh4 {[%emt 0:00:14]} Kg6 {[%emt 0:00:29]} 42. Kf2 {[%emt 0:00:29]} Rh5 {[%emt 0:01:48]} 43. Kg3 {[%emt 0:00:16]} f5 {[%emt 0:00:36]} 44. f4 1-0

[Event "68th Warsaw-ch-B 2019"]
[Site "Warsaw"]
[Date "2019.11.16"]
[Round "5.1"]
[White "Jaworski, Jakub"]
[Black "Gierech, Pawel"]
[Result "1/2-1/2"]
[ECO "A01"]
[WhiteElo "1646"]
[BlackElo "1652"]
[Annotator "NA"]
[PlyCount "103"]
[EventDate "2019.11.14"]
[EventType "swiss"]
[EventCountry "POL"]
[SourceTitle "playchess.com"]
[Source "ChessBase"]
[SourceQuality "1"]
[TimeControl "5400+30"]

1. b3 {[%emt 0:29:32]} d5 {[%emt 0:32:21]} 2. Bb2 {[%emt 0:00:08]} Bf5 {[%emt 0:00:40]} 3. e3 {[%emt 0:00:29]} Nf6 {[%emt 0:00:16]} 4. Nf3 {[%emt 0:00:36]} e6 {[%emt 0:00:12]} 5. Nh4 {[%emt 0:02:55]} Bg4 {[%emt 0:01:04]} 6. Be2 {[%emt 0:00:26]} Bxe2 {[%emt 0:00:09]} 7. Qxe2 {[%emt 0:00:06]} Nbd7 {[%emt 0:01:22]} 8. f4 {[%emt 0:00:45]} a6 {[%emt 0:02:16]} 9. Nf3 {[%emt 0:01:41]} Be7 {[%emt 0:01:29]} 10. d3 {[%emt 0:00:34]} c5 {[%emt 0:01:00]} 11. Nbd2 {[%emt 0:01:02]} O-O {[%emt 0:02:33]} 12. O-O {[%emt 0:00:07]} b5 {[%emt 0:00:56]} 13. Ne5 {[%emt 0:01:55]} Qb6 {[%emt 0:01:25]} 14. g4 {[%emt 0:04:28]} Nxe5 {[%emt 0:00:50]} 15. Bxe5 {[%emt 0:00:11]} Nd7 {[%emt 0:00:06]} 16. Bb2 {[%emt 0:00:54]} Bf6 {[%emt 0:00:16]} 17. Bxf6 {[%emt 0:00:19]} Nxf6 {[%emt 0:00:06]} 18. g5 {[%emt 0:00:29]} Ne8 {[%emt 0:01:27]} 19. Rf3 {[%emt 0:03:29]} g6 {[%emt 0:02:42]} 20. Rh3 {[%emt 0:03:03]} f5 {[%emt 0:00:52]} 21. gxf6 {[%emt 0:00:34]} Nxf6 {[%emt 0:02:12]} 22. Nf3 {[%emt 0:00:56]} c4 {[%emt 0:05:47]} 23. Ne5 {[%emt 0:00:42]} cxd3 {[%emt 0:01:38]} 24. cxd3 {[%emt 0:01:18]} Ra7 {[%emt 0:00:30]} 25. Kh1 {[%emt 0:05:56]} Nd7 {[%emt 0:04:25]} 26. Qb2 {[%emt 0:05:23]} Nxe5 {[%emt 0:00:58]} 27. Qxe5 {[%emt 0:00:24]} Rf5 {[%emt 0:00:07]} 28. Qb2 {[%emt 0:00:36]} d4 {[%emt 0:01:25]} 29. Rc1 {[%emt 0:08:43]} Qd8 {[%emt 0:10:38]} 30. Qxd4 {[%emt 0:08:20]} Qxd4 {[%emt 0:00:07]} 31. exd4 {[%emt 0:00:05]} Rxf4 {[%emt 0:00:09]} 32. Rc6 {[%emt 0:00:14]} Rf2 {[%emt 0:01:25]} 33. Re3 {[%emt 0:04:14]} Rxa2 {[%emt 0:00:22]} 34. Rexe6 {[%emt 0:01:25]} Rf7 {[%emt 0:03:41]} 35. Rf6 {[%emt 0:01:45]} Rxf6 {[%emt 0:03:03]} 36. Rxf6 {[%emt 0:00:06]} Kg7 {[%emt 0:00:48]} 37. Rb6 {[%emt 0:06:25]} h5 {[%emt 0:01:24]} 38. d5 {[%emt 0:00:35]} Kf7 {[%emt 0:00:10]} 39. h4 {[%emt 0:01:23]} Ra3 {[%emt 0:00:18]} 40. Kg2 {[%emt 0:02:26]} Rxb3 {[%emt 0:00:21]} 41. Rxa6 {[%emt 0:00:02]} Rxd3 {[%emt 0:00:08]} 42. d6 {[%emt 0:00:36]} Ke6 {[%emt 0:00:12]} 43. d7+ {[%emt 0:02:27]} Kf5 {[%emt 0:01:38]} 44. Rb6 {[%emt 0:01:30]} Kg4 {[%emt 0:01:33]} 45. Rxg6+ {[%emt 0:00:41]} Kxh4 {[%emt 0:00:06]} 46. Rb6 {[%emt 0:00:17]} Rxd7 {[%emt 0:00:20]} 47. Rxb5 {[%emt 0:00:07]} Rd2+ {[%emt 0:00:27]} 48. Kg1 {[%emt 0:00:06]} Kg4 {[%emt 0:00:24]} 49. Rb4+ {[%emt 0:00:04]} Kf3 {[%emt 0:00:25]} 50. Rb3+ {[%emt 0:00:04]} Ke4 {[%emt 0:00:21]} 51. Rb4+ {[%emt 0:00:06]} Rd4 {[%emt 0:00:05]} 52. Rxd4+ {[%emt 0:00:03]} 1/2-1/2

[Event "68th Warsaw-ch-B 2019"]
[Site "Warsaw"]
[Date "2019.11.16"]
[Round "5.2"]
[White "Podgorski, Maciej"]
[Black "Klim, Filip"]
[Result "1-0"]
[ECO "C54"]
[WhiteElo "1737"]
[BlackElo "1634"]
[Annotator "NA"]
[PlyCount "133"]
[EventDate "2019.11.14"]
[EventType "swiss"]
[EventCountry "POL"]
[SourceTitle "playchess.com"]
[Source "ChessBase"]
[SourceQuality "1"]
[TimeControl "5400+30"]

1. e4 {[%emt 0:29:31]} e5 {[%emt 0:29:35]} 2. Nf3 {[%emt 0:00:04]} Nc6 {[%emt 0:00:12]} 3. Bc4 {[%emt 0:00:04]} Bc5 {[%emt 0:00:10]} 4. c3 {[%emt 0:00:05]} Nf6 {[%emt 0:00:12]} 5. d4 {[%emt 0:00:07]} exd4 {[%emt 0:00:11]} 6. e5 {[%emt 0:00:03]} d5 {[%emt 0:00:19]} 7. Bb5 {[%emt 0:00:05]} Ne4 {[%emt 0:00:21]} 8. cxd4 {[%emt 0:00:05]} Bb6 {[%emt 0:00:35]} 9. Nc3 {[%emt 0:00:38]} Nxc3 {[%emt 0:00:44]} 10. bxc3 {[%emt 0:00:05]} Bd7 {[%emt 0:01:40]} 11. O-O {[%emt 0:03:55]} O-O {[%emt 0:02:55]} 12. Bg5 {[%emt 0:02:25]} Ne7 {[%emt 0:02:17]} 13. Bd3 {[%emt 0:01:18]} Bg4 {[%emt 0:00:55]} 14. h3 {[%emt 0:00:31]} Bh5 {[%emt 0:01:06]} 15. g4 {[%emt 0:00:35]} Bg6 {[%emt 0:01:21]} 16. h4 {[%emt 0:02:26]} h6 {[%emt 0:05:00]} 17. Bxe7 {[%emt 0:03:16]} Qxe7 {[%emt 0:00:08]} 18. h5 {[%emt 0:00:05]} Bxd3 {[%emt 0:01:27]} 19. Qxd3 {[%emt 0:00:02]} Qe6 {[%emt 0:02:27]} 20. Qf5 {[%emt 0:02:03]} Rad8 {[%emt 0:07:04]} 21. Kh2 {[%emt 0:02:46]} c5 {[%emt 0:02:43]} 22. Rg1 {[%emt 0:03:29]} Rc8 {[%emt 0:01:39]} 23. Rg2 {[%emt 0:03:53]} cxd4 {[%emt 0:01:52]} 24. cxd4 {[%emt 0:00:05]} Rc3 {[%emt 0:00:54]} 25. Qf4 {[%emt 0:01:28]} g5 {[%emt 0:04:32]} 26. Qg3 {[%emt 0:01:55]} Bxd4 {[%emt 0:00:23]} 27. Nxd4 {[%emt 0:00:35]} Rxg3 {[%emt 0:00:09]} 28. Nxe6 {[%emt 0:00:05]} Rxg2+ {[%emt 0:00:05]} 29. Kxg2 {[%emt 0:00:07]} fxe6 {[%emt 0:00:03]} 30. Rc1 {[%emt 0:00:21]} Kg7 {[%emt 0:02:39]} 31. Rc7+ {[%emt 0:01:42]} Rf7 {[%emt 0:00:06]} 32. Rc8 {[%emt 0:00:04]} Re7 {[%emt 0:00:05]} 33. Kf3 {[%emt 0:01:15]} Rf7+ {[%emt 0:04:34]} 34. Ke3 {[%emt 0:00:06]} Rf4 {[%emt 0:02:33]} 35. Rc7+ {[%emt 0:02:14]} Kf8 {[%emt 0:01:42]} 36. f3 {[%emt 0:02:02]} Ra4 {[%emt 0:01:37]} 37. Rxb7 {[%emt 0:01:49]} Rxa2 {[%emt 0:00:19]} 38. Rh7 {[%emt 0:00:29]} a5 {[%emt 0:01:26]} 39. Rxh6 {[%emt 0:00:12]} Kf7 {[%emt 0:02:19]} 40. Rh7+ {[%emt 0:01:05]} Kg8 {[%emt 0:01:32]} 41. Re7 {[%emt 0:01:17]} a4 {[%emt 0:02:49]} 42. Rxe6 {[%emt 0:06:36]} a3 {[%emt 0:01:35]} 43. Ra6 {[%emt 0:01:27]} Ra1 {[%emt 0:01:29]} 44. e6 {[%emt 0:03:15]} a2 {[%emt 0:00:37]} 45. Ra8+ {[%emt 0:01:19]} Kg7 {[%emt 0:00:40]} 46. e7 {[%emt 0:00:38]} Re1+ {[%emt 0:01:14]} 47. Kd4 {[%emt 0:00:49]} Rxe7 {[%emt 0:00:54]} 48. Rxa2 {[%emt 0:00:06]} Rf7 {[%emt 0:01:31]} 49. Ra3 {[%emt 0:00:13]} Rd7 {[%emt 0:00:53]} 50. Re3 {[%emt 0:00:09]} Kh7 {[%emt 0:05:02]} 51. Re5 {[%emt 0:02:06]} Rf7 {[%emt 0:00:23]} 52. Rf5 {[%emt 0:00:16]} Ra7 {[%emt 0:00:14]} 53. Rxd5 {[%emt 0:01:37]} Kh6 {[%emt 0:01:07]} 54. Rd6+ {[%emt 0:00:18]} Kh7 {[%emt 0:00:06]} 55. Ke5 {[%emt 0:00:58]} Ra5+ {[%emt 0:00:51]} 56. Rd5 {[%emt 0:00:26]} Ra3 {[%emt 0:00:17]} 57. Kf5 {[%emt 0:02:15]} Rxf3+ {[%emt 0:00:28]} 58. Kxg5 {[%emt 0:00:05]} Ra3 {[%emt 0:00:38]} 59. Rd7+ {[%emt 0:00:37]} Kg8 {[%emt 0:00:07]} 60. h6 {[%emt 0:02:39]} Ra5+ {[%emt 0:00:27]} 61. Kg6 {[%emt 0:00:27]} Ra6+ {[%emt 0:00:05]} 62. Kh5 {[%emt 0:00:10]} Ra5+ {[%emt 0:00:24]} 63. g5 {[%emt 0:00:47]} Ra1 {[%emt 0:01:18]} 64. Rd8+ {[%emt 0:03:49]} Kf7 {[%emt 0:00:10]} 65. g6+ {[%emt 0:00:20]} Kf6 {[%emt 0:02:32]} 66. Rf8+ {[%emt 0:01:13]} Ke7 {[%emt 0:00:26]} 67. g7 {[%emt 0:00:17]} 1-0

[Event "68th Warsaw-ch-B 2019"]
[Site "Warsaw"]
[Date "2019.11.16"]
[Round "5.3"]
[White "Winogrodzki, Jozef"]
[Black "Kwiek, Janusz"]
[Result "1-0"]
[ECO "B07"]
[WhiteElo "1415"]
[BlackElo "1496"]
[Annotator "NA"]
[PlyCount "94"]
[EventDate "2019.11.14"]
[EventType "swiss"]
[EventCountry "POL"]
[SourceTitle "playchess.com"]
[Source "ChessBase"]
[SourceQuality "1"]
[TimeControl "5400+30"]

1. e4 {[%emt 0:29:40]} d6 {[%emt 0:29:59]} 2. d4 {[%emt 0:00:15]} Nf6 {[%emt 0:00:13]} 3. Nc3 {[%emt 0:00:42]} g6 {[%emt 0:00:18]} 4. g3 {[%emt 0:00:21]} Bg7 {[%emt 0:00:11]} 5. Bg2 {[%emt 0:00:11]} O-O {[%emt 0:00:09]} 6. Nge2 {[%emt 0:00:24]} c6 {[%emt 0:01:36]} 7. O-O {[%emt 0:00:17]} e5 {[%emt 0:02:10]} 8. h3 {[%emt 0:00:36]} Be6 {[%emt 0:02:31]} 9. Be3 {[%emt 0:00:50]} Qc8 {[%emt 0:04:36]} 10. Kh2 {[%emt 0:00:09]} Na6 {[%emt 0:01:20]} 11. Qd2 {[%emt 0:03:51]} Rd8 {[%emt 0:03:34]} 12. Rad1 {[%emt 0:07:39]} b5 {[%emt 0:02:33]} 13. a3 {[%emt 0:06:34]} Qc7 {[%emt 0:02:39]} 14. f4 {[%emt 0:02:56]} exd4 {[%emt 0:02:24]} 15. Nxd4 {[%emt 0:00:17]} Bc4 {[%emt 0:00:49]} 16. Rf2 {[%emt 0:00:24]} Be6 {[%emt 0:06:01]} 17. Qe1 {[%emt 0:06:01]} Nc5 {[%emt 0:02:10]} 18. e5 {[%emt 0:02:39]} dxe5 {[%emt 0:02:50]} 19. Nxc6 {[%emt 0:00:11]} Rxd1 {[%emt 0:00:35]} 20. Qxd1 {[%emt 0:00:21]} e4 {[%emt 0:03:03]} 21. Bxc5 {[%emt 0:04:11]} Qxc6 {[%emt 0:00:26]} 22. Qd6 {[%emt 0:00:27]} Qxd6 {[%emt 0:00:51]} 23. Bxd6 {[%emt 0:00:12]} Ne8 {[%emt 0:01:27]} 24. Bxe4 {[%emt 0:01:00]} Rd8 {[%emt 0:02:10]} 25. Bb4 {[%emt 0:00:26]} a6 {[%emt 0:01:48]} 26. Bb7 {[%emt 0:01:14]} Bc8 27. Ba5 Bxb7 {[%emt 0:03:48]} 28. Bxd8 {[%emt 0:00:45]} f5 {[%emt 0:01:28]} 29. Rd2 {[%emt 0:03:26]} Bc6 {[%emt 0:00:34]} 30. Bb6 Bf6 31. Bd4 Be7 32. Be5 Kf7 {[%emt 0:03:43]} 33. Ne2 {[%emt 0:03:03]} Nf6 {[%emt 0:05:46]} 34. Bxf6 {[%emt 0:03:03]} Kxf6 {[%emt 0:00:27]} 35. Nd4 {[%emt 0:00:42]} Be8 {[%emt 0:02:08]} 36. Kg2 {[%emt 0:00:39]} h6 {[%emt 0:00:37]} 37. Kf3 {[%emt 0:01:17]} h5 {[%emt 0:00:28]} 38. h4 {[%emt 0:00:09]} Bc5 {[%emt 0:01:30]} 39. Rd3 {[%emt 0:01:13]} Be7 {[%emt 0:01:56]} 40. Rc3 {[%emt 0:00:45]} Bd6 {[%emt 0:01:21]} 41. Rc8 {[%emt 0:00:28]} Bd7 {[%emt 0:00:55]} 42. Ra8 {[%emt 0:00:16]} Bc5 {[%emt 0:01:05]} 43. Rxa6+ {[%emt 0:00:24]} Ke7 {[%emt 0:00:41]} 44. Ke3 {[%emt 0:00:29]} Be8 {[%emt 0:00:49]} 45. Kd3 {[%emt 0:00:21]} Bf7 {[%emt 0:01:30]} 46. b3 {[%emt 0:00:26]} b4 {[%emt 0:00:17]} 47. axb4 {[%emt 0:00:20]} Bxb4 {Ke4} 1-0

[Event "68th Warsaw-ch-B 2019"]
[Site "Warsaw"]
[Date "2019.11.16"]
[Round "5.4"]
[White "Mazurkiewicz, Wojciech"]
[Black "Green, Daniel P."]
[Result "1-0"]
[ECO "B15"]
[WhiteElo "1557"]
[BlackElo "2240"]
[Annotator "NA"]
[PlyCount "65"]
[EventDate "2019.11.14"]
[EventType "swiss"]
[EventCountry "POL"]
[SourceTitle "playchess.com"]
[Source "ChessBase"]
[SourceQuality "1"]
[TimeControl "5400+30"]

1. e4 {[%emt 0:29:34]} c6 {[%emt 0:30:45]} 2. d4 {[%emt 0:00:08]} d5 {[%emt 0:00:10]} 3. Nc3 {[%emt 0:00:08]} g6 {[%emt 0:00:12]} 4. e5 {[%emt 0:00:39]} Bg7 {[%emt 0:00:17]} 5. Nf3 {[%emt 0:00:13]} Bg4 {[%emt 0:00:13]} 6. h3 {[%emt 0:00:14]} Bxf3 {[%emt 0:00:10]} 7. Qxf3 {[%emt 0:00:08]} c5 {[%emt 0:01:35]} 8. Bb5+ {[%emt 0:02:41]} Nc6 {[%emt 0:01:08]} 9. Nxd5 {[%emt 0:08:23]} cxd4 {[%emt 0:01:20]} 10. Nb4 {[%emt 0:03:12]} Qa5 {[%emt 0:12:52]} 11. Bxc6+ {[%emt 0:04:03]} Kf8 {[%emt 0:00:08]} 12. Bd5 {[%emt 0:12:32]} e6 {[%emt 0:01:03]} 13. Bd2 {[%emt 0:05:10]} Bh6 {[%emt 0:14:02]} 14. Bxh6+ {[%emt 0:13:36]} Nxh6 {[%emt 0:00:16]} 15. O-O {[%emt 0:01:30]} Qxb4 {[%emt 0:04:04]} 16. Bxe6 {[%emt 0:01:21]} Re8 {[%emt 0:01:43]} 17. Qf6 {[%emt 0:02:15]} Rg8 {[%emt 0:03:59]} 18. Bb3 {[%emt 0:00:24]} Qe7 {[%emt 0:05:14]} 19. Qf4 {[%emt 0:03:21]} Nf5 {[%emt 0:00:54]} 20. g4 {[%emt 0:01:15]} Qh4 {[%emt 0:00:22]} 21. Qf3 {[%emt 0:02:07]} Rxe5 {[%emt 0:02:42]} 22. gxf5 {[%emt 0:01:01]} gxf5+ {[%emt 0:05:05]} 23. Kh2 {[%emt 0:00:17]} Re4 {[%emt 0:01:32]} 24. Rg1 {[%emt 0:01:59]} Rgg4 {[%emt 0:00:37]} 25. Rxg4 {[%emt 0:00:21]} Rxg4 {[%emt 0:01:07]} 26. Qxf5 {[%emt 0:00:46]} Rf4 {[%emt 0:00:16]} 27. Qc5+ {[%emt 0:02:33]} Kg7 {[%emt 0:01:30]} 28. Rg1+ {[%emt 0:00:05]} Kh6 {[%emt 0:00:21]} 29. Rg2 {[%emt 0:02:05]} Rxf2 {[%emt 0:02:13]} 30. Qf8+ {[%emt 0:00:18]} Kh5 {[%emt 0:00:12]} 31. Bxf7+ {[%emt 0:00:07]} Rxf7 {[%emt 0:00:16]} 32. Qxf7+ {[%emt 0:00:01]} Kh6 {[%emt 0:00:17]} 33. Qg7+ {[%emt 0:00:31]} 1-0

[Event "68th Warsaw-ch-B 2019"]
[Site "Warsaw"]
[Date "2019.11.16"]
[Round "5.5"]
[White "Muck, Piotr"]
[Black "Marczukiewicz, Slawomir"]
[Result "1-0"]
[ECO "E98"]
[WhiteElo "1490"]
[BlackElo "1455"]
[Annotator "NA"]
[PlyCount "69"]
[EventDate "2019.11.14"]
[EventType "swiss"]
[EventCountry "POL"]
[SourceTitle "playchess.com"]
[Source "ChessBase"]
[SourceQuality "1"]
[TimeControl "5400+30"]

1. d4 {[%emt 0:29:36]} Nf6 {[%emt 0:29:38]} 2. Nf3 {[%emt 0:00:07]} g6 {[%emt 0:00:19]} 3. c4 {[%emt 0:00:24]} Bg7 {[%emt 0:00:04]} 4. Nc3 {[%emt 0:00:09]} O-O {[%emt 0:00:38]} 5. e4 {[%emt 0:00:05]} d6 {[%emt 0:00:04]} 6. Be2 {[%emt 0:00:12]} e5 {[%emt 0:00:04]} 7. O-O {[%emt 0:00:11]} Nc6 {[%emt 0:00:15]} 8. d5 {[%emt 0:00:09]} Ne7 {[%emt 0:00:01]} 9. Ne1 {[%emt 0:00:10]} Nd7 {[%emt 0:00:07]} 10. Be3 {[%emt 0:00:15]} f5 {[%emt 0:01:38]} 11. f3 {[%emt 0:00:55]} f4 {[%emt 0:00:03]} 12. Bf2 {[%emt 0:00:09]} g5 {[%emt 0:00:56]} 13. g4 {[%emt 0:00:45]} Ng6 {[%emt 0:00:20]} 14. Rc1 {[%emt 0:03:07]} Rf7 {[%emt 0:00:05]} 15. b4 {[%emt 0:00:31]} a5 {[%emt 0:00:07]} 16. a3 {[%emt 0:00:22]} Bf8 {[%emt 0:00:22]} 17. Nd3 {[%emt 0:01:27]} axb4 {[%emt 0:01:21]} 18. axb4 {[%emt 0:00:16]} b6 {[%emt 0:00:26]} 19. Ra1 {[%emt 0:01:29]} Rxa1 {[%emt 0:00:16]} 20. Qxa1 {[%emt 0:00:02]} Nf6 21. c5 bxc5 {[%emt 0:02:04]} 22. bxc5 {[%emt 0:00:37]} h5 {[%emt 0:00:51]} 23. h3 {[%emt 0:00:11]} hxg4 {[%emt 0:00:09]} 24. hxg4 {[%emt 0:00:21]} Rh7 {[%emt 0:00:02]} 25. Kg2 {[%emt 0:00:20]} Nh4+ {[%emt 0:03:05]} 26. Bxh4 {[%emt 0:00:25]} Rxh4 {[%emt 0:00:05]} 27. c6 {[%emt 0:00:24]} Qe7 {[%emt 0:02:54]} 28. Rh1 {[%emt 0:00:16]} Qh7 {[%emt 0:00:28]} 29. Nf2 {[%emt 0:00:35]} Kf7 {[%emt 0:03:25]} 30. Qa8 {[%emt 0:01:44]} Rxh1 {[%emt 0:00:30]} 31. Nxh1 {[%emt 0:00:09]} Bxg4 {[%emt 0:02:59]} 32. fxg4 {[%emt 0:00:11]} Nxe4 {[%emt 0:00:51]} 33. Nxe4 {[%emt 0:02:25]} Qxe4+ {[%emt 0:00:20]} 34. Bf3 {[%emt 0:00:04]} Qc2+ {[%emt 0:00:32]} 35. Nf2 {[%emt 0:00:08]} 1-0

[Event "68th Warsaw-ch-B 2019"]
[Site "Warsaw"]
[Date "2019.11.17"]
[Round "6.1"]
[White "Winogrodzki, Jozef"]
[Black "Jaworski, Jakub"]
[Result "0-1"]
[ECO "B00"]
[WhiteElo "1415"]
[BlackElo "1646"]
[Annotator "NA RC"]
[PlyCount "126"]
[EventDate "2019.11.14"]
[EventType "swiss"]
[EventCountry "POL"]
[SourceTitle "playchess.com"]
[Source "ChessBase"]
[SourceQuality "1"]
[TimeControl "5400+30"]

1. e4 {[%emt 0:30:10]} b6 {[%emt 0:29:40]} 2. d4 {[%emt 0:01:53]} Bb7 {[%emt 0:00:07]} 3. Bd3 {[%emt 0:00:13]} e6 {[%emt 0:00:07]} 4. Ne2 {[%emt 0:00:49]} c5 {[%emt 0:00:09]} 5. c3 {[%emt 0:01:22]} Nf6 {[%emt 0:00:07]} 6. Nd2 {[%emt 0:00:22]} d6 {[%emt 0:02:12]} 7. O-O {[%emt 0:00:42]} Be7 {[%emt 0:01:04]} 8. h3 {[%emt 0:01:25]} Nc6 {[%emt 0:00:24]} 9. a3 {[%emt 0:00:08]} Qd7 {[%emt 0:00:52]} 10. f4 {[%emt 0:07:48]} a6 {[%emt 0:06:03]} 11. Nf3 {[%emt 0:01:40]} Rd8 {[%emt 0:03:49]} 12. Be3 {[%emt 0:00:39]} h6 {[%emt 0:00:54]} 13. Qd2 {[%emt 0:02:50]} Na5 {[%emt 0:00:36]} 14. Rae1 {[%emt 0:08:39]} Nxe4 {[%emt 0:03:19]} 15. Qc2 {[%emt 0:00:17]} f5 {[%emt 0:03:27]} 16. Qb1 {[%emt 0:02:54]} c4 {[%emt 0:01:24]} 17. Bc2 {[%emt 0:00:17]} Bd5 {[%emt 0:01:11]} 18. Qd1 {[%emt 0:01:46]} O-O {[%emt 0:01:24]} 19. Kh2 {[%emt 0:00:09]} Nc6 {[%emt 0:04:03]} 20. Neg1 {[%emt 0:01:55]} Qb7 {[%emt 0:02:17]} 21. Qe2 {[%emt 0:02:20]} b5 {[%emt 0:00:21]} 22. g3 {[%emt 0:02:32]} g6 {[%emt 0:01:19]} 23. Bc1 {[%emt 0:00:25]} Nb8 {[%emt 0:00:34]} 24. Be3 {[%emt 0:00:25]} Kh7 {[%emt 0:00:13]} 25. Bc1 {[%emt 0:00:17]} Nd7 {[%emt 0:00:08]} 26. Be3 {[%emt 0:00:18]} Ndf6 {[%emt 0:00:14]} 27. Bc1 {[%emt 0:00:25]} Nh5 {[%emt 0:01:13]} 28. Bxe4 {[%emt 0:01:02]} Bxe4 {[%emt 0:00:15]} 29. Rf2 {[%emt 0:00:28]} Nf6 {[%emt 0:02:18]} 30. Be3 {[%emt 0:03:41]} a5 {[%emt 0:01:12]} 31. Bd2 {[%emt 0:01:13]} Bd5 {[%emt 0:00:15]} 32. Rff1 {[%emt 0:00:34]} Ne4 {[%emt 0:00:47]} 33. Be3 {[%emt 0:00:46]} b4 {[%emt 0:00:54]} 34. axb4 {[%emt 0:05:55]} axb4 {[%emt 0:00:05]} 35. Nd2 {[%emt 0:00:27]} bxc3 {[%emt 0:01:57]} 36. Nxe4 {[%emt 0:00:30]} Bxe4 {[%emt 0:00:13]} 37. bxc3 {[%emt 0:01:36]} Bd3 {[%emt 0:00:09]} 38. Qf3 {[%emt 0:00:12]} Qxf3 {[%emt 0:01:29]} 39. Rxf3 {[%emt 0:00:14]} d5 {[%emt 0:00:47]} 40. Rf2 {[%emt 0:01:08]} Ra8 {[%emt 0:00:41]} 41. Nf3 {[%emt 0:02:35]} Be4 {[%emt 0:01:59]} 42. Ne5 {[%emt 0:01:07]} Ra3 {[%emt 0:02:00]} 43. Rb2 {[%emt 0:02:53]} Rb3 {[%emt 0:00:40]} 44. Ra2 {[%emt 0:00:08]} Rfb8 {[%emt 0:00:27]} 45. Ra7 {[%emt 0:00:07]} R8b7 {[%emt 0:02:55]} 46. Rea1 {[%emt 0:00:13]} Bd6 {[%emt 0:02:18]} 47. R1a6 {[%emt 0:02:41]} Rxa7 {[%emt 0:03:11]} 48. Rxa7+ {[%emt 0:00:15]} Kg8 {[%emt 0:00:09]} 49. Ra8+ {[%emt 0:02:10]} Kg7 {[%emt 0:04:45]} 50. Ra7+ {[%emt 0:00:14]} Kf8 {[%emt 0:00:05]} 51. Ra8+ {[%emt 0:02:43]} Ke7 {[%emt 0:02:07]} 52. Ra7+ {[%emt 0:00:06]} Ke8 {[%emt 0:00:28]} 53. Ra8+ {[%emt 0:00:08]} Bb8 {[%emt 0:02:41]} 54. Nc6 {[%emt 0:00:12]} Rxc3 {[%emt 0:00:10]} 55. Bf2 {[%emt 0:02:30]} Rc2 {[%emt 0:00:56]} 56. Rxb8+ {[%emt 0:00:36]} Kd7 {[%emt 0:00:08]} 57. Ne5+ {[%emt 0:00:11]} Kc7 {[%emt 0:00:11]} 58. Re8 {[%emt 0:01:48]} Rxf2+ {[%emt 0:00:11]} 59. Kg1 {[%emt 0:00:09]} Rg2+ {[%emt 0:01:05]} 60. Kf1 {[%emt 0:00:09]} c3 {[%emt 0:00:38]} 61. Rxe6 {[%emt 0:00:40]} c2 {[%emt 0:00:28]} 62. Rc6+ {[%emt 0:00:15]} Kb7 {[%emt 0:00:04]} 63. Rc3 {[%emt 0:00:32]} Rh2 {[%emt 0:00:42]} 0-1

[Event "68th Warsaw-ch-B 2019"]
[Site "Warsaw"]
[Date "2019.11.17"]
[Round "6.3"]
[White "Klim, Filip"]
[Black "Mazurkiewicz, Wojciech"]
[Result "1/2-1/2"]
[ECO "C42"]
[WhiteElo "1634"]
[BlackElo "1557"]
[Annotator "NA RC"]
[PlyCount "54"]
[EventDate "2019.11.14"]
[EventType "swiss"]
[EventCountry "POL"]
[SourceTitle "playchess.com"]
[Source "ChessBase"]
[SourceQuality "1"]
[TimeControl "5400+30"]

1. e4 {[%emt 0:29:33]} e5 {[%emt 0:29:36]} 2. Nf3 {[%emt 0:00:09]} Nf6 {[%emt 0:00:05]} 3. Nxe5 {[%emt 0:00:16]} d6 {[%emt 0:00:07]} 4. Nf3 {[%emt 0:00:08]} Nxe4 {[%emt 0:00:06]} 5. d4 {[%emt 0:00:09]} d5 {[%emt 0:00:06]} 6. Bd3 {[%emt 0:00:37]} Nc6 {[%emt 0:00:13]} 7. O-O {[%emt 0:02:54]} Be7 {[%emt 0:00:08]} 8. Re1 {[%emt 0:01:53]} Bg4 {[%emt 0:01:20]} 9. c3 {[%emt 0:03:54]} f5 {[%emt 0:00:26]} 10. Nbd2 {[%emt 0:04:53]} O-O {[%emt 0:00:13]} 11. Nf1 {[%emt 0:03:09]} Bd6 {[%emt 0:00:28]} 12. Ne3 {[%emt 0:02:57]} Bxh2+ {[%emt 0:01:32]} 13. Kxh2 {[%emt 0:01:58]} Nxf2 {[%emt 0:00:25]} 14. Qc2 {[%emt 0:08:21]} Nxd3 {[%emt 0:00:36]} 15. Qxd3 {[%emt 0:00:58]} Bxf3 {[%emt 0:00:09]} 16. Nxf5 {[%emt 0:01:56]} Be4 {[%emt 0:16:04]} 17. Rxe4 {[%emt 0:00:30]} dxe4 {[%emt 0:00:30]} 18. Qxe4 {[%emt 0:00:30]} Qf6 {[%emt 0:00:30]} 19. Ng3 {[%emt 0:00:30]} Rae8 {[%emt 0:00:30]} 20. Qg4 {[%emt 0:00:30]} Qe6 {[%emt 0:00:30]} 21. Qxe6+ {[%emt 0:00:30]} Rxe6 {[%emt 0:00:30]} 22. d5 {[%emt 0:00:30]} Re1 {[%emt 0:00:30]} 23. dxc6 {[%emt 0:00:30]} bxc6 {[%emt 0:00:30]} 24. b3 {[%emt 0:00:30]} Rf2 {[%emt 0:00:30]} 25. c4 {[%emt 0:00:30]} Rc2 {[%emt 0:00:30]} 26. Bb2 {[%emt 0:00:30]} Rxa1 {[%emt 0:00:30]} 27. Bxa1 {[%emt 0:00:30]} Rxa2 {[%emt 0:00:30]} 1/2-1/2